[Event "44th Chess Olympiad Open 2022"]
[Site "Chennai"]
[Date "2022.08.02"]
[Round "5.21"]
[White "Ragger, Markus"]
[Black "Ferreira, Jorge Viterbo"]
[Result "1/2-1/2"]
[WhiteElo "2647"]
[BlackElo "2499"]
[Annotator "TA"]
[PlyCount "60"]
[EventDate "2022.??.??"]
[TimeControl "60"]

{[%evp 15,60,37,35,12,24,21,16,18,25,25,27,9,13,6,6,8,24,10,23,0,0,0,0,0,0,-10,
0,0,0,0,0,0,0,-14,0,0,0,-6,0,-9,0,-14,0,-1,0,-37,-8]} 1. e4 {[%emt 0:00:01]} e5
{[%emt 0:00:09]} 2. Nf3 {[%emt 0:00:03]} Nf6 {[%emt 0:00:10]} 3. Nxe5 {[%emt 0:
00:00]} d6 {[%emt 0:00:07]} 4. Nf3 {[%emt 0:00:04]} Nxe4 {[%emt 0:00:08]} 5. d4
{[%emt 0:00:02]} d5 {[%emt 0:00:13]} 6. Bd3 {[%emt 0:00:05]} Bf5 {[%emt 0:00:
00]} 7. O-O {[%emt 0:00:46]} Be7 {[%emt 0:00:10]} 8. Re1 {[%emt 0:00:36]} O-O {
[%emt 0:00:14]} 9. Nbd2 {[%emt 0:00:06][%cal Rd2e4,Yb1d2,Yd2f1,Yf1e3] The
modern move. C42: Petroff Defence: 3 Nxe5 and unusual White 3rd moves.} Nd6 $1
{[%emt 0:00:32]} 10. Nf1 {[%emt 0:00:03]} Bxd3 {[%emt 0:00:41]} 11. Qxd3 {
[%emt 0:00:03] The position is equal.} c6 {[%emt 0:00:24]} 12. Bf4 {[%emt 0:00:
00]} Na6 {[%emt 0:00:19][%cal Yb8a6,Ya6c7,Yc7e6]} 13. h4 {[%emt 0:00:00]} Nc7 {
[%emt 0:00:36]} 14. Ng5 {[%emt 0:02:22][%csl Gg5][%cal Rd3h7] [#]} g6 {[%emt 0:
00:13]} 15. Ne3 {[%emt 0:00:09]} h6 {[%emt 0:00:56]} 16. Nf3 {[%emt 0:00:00]
Black must now prevent h5.} h5 $1 {[%emt 0:00:22] [#]} 17. Rac1 $146 {[%emt 0:
11:23]} ({Predecessor:} 17. b3 Ne4 18. Bxc7 Qxc7 19. c4 Qf4 20. cxd5 Bxh4 21.
Re2 Bf6 22. dxc6 bxc6 23. Nc4 Ng5 24. Nxg5 Qxg5 25. Ne5 Bxe5 26. dxe5 Rfe8 27.
e6 Qd5 28. exf7+ Kxf7 {½-½ (28) Szulc,S (2109)-Korn,C (2147) ICCF email 2020}
) 17... Bf6 {[%emt 0:12:57]} 18. Be5 {[%emt 0:22:10]} Ne6 {[%emt 0:00:00]} 19.
g3 {[%emt 0:05:11]} Re8 {[%emt 0:03:34]} 20. b3 {[%emt 0:12:07]} Bg7 {[%emt 0:
07:52]} 21. c4 {[%emt 0:02:29]} dxc4 {[%emt 0:10:58]} 22. bxc4 {[%emt 0:00:38]}
({Much worse is} 22. Nxc4 Nf5 $15) 22... Bxe5 {[%emt 0:03:14]} 23. dxe5 {
[%emt 0:05:33]} Nf5 {[%emt 0:00:49]} 24. Qxd8 {[%emt 0:03:49]} Raxd8 {[%emt 0:
00:23]} 25. Nxf5 {[%emt 0:00:06]} gxf5 {[%emt 0:00:09]} 26. Rcd1 {[%emt 0:07:
41] Against Rd3} Kg7 {[%emt 0:04:48]} 27. Kg2 {[%emt 0:04:03]} f6 {[%emt 0:05:
06]} 28. Kf1 {[%emt 0:08:01]} fxe5 {[%emt 0:03:11]} 29. Nxe5 {[%emt 0:00:22]}
Nc5 {[%emt 0:02:33] [#] And now ...Rxd1 would win.} 30. Nf3 {[%emt 0:02:40]}
Rxe1+ {[%emt 0:04:15] An even fight not without its subleties. Weighted Error
Value: White=0.07 (flawless) /Black=0.03 (flawless)} 1/2-1/2

[Event "44th Chess Olympiad Open 2022"]
[Site "Chennai"]
[Date "2022.08.02"]
[Round "5.21"]
[White "Blohberger, Felix"]
[Black "Sousa, Andre Ventura"]
[Result "1/2-1/2"]
[WhiteElo "2492"]
[BlackElo "2420"]
[Annotator "RC"]
[PlyCount "74"]
[EventDate "2022.??.??"]
[TimeControl "60"]

1. e4 {[%emt 0:00:04]} c6 {[%emt 0:00:04]} 2. Nf3 {[%emt 0:00:13]} d5 {[%emt 0:
00:00]} 3. Nc3 {[%emt 0:00:07]} Bg4 {[%emt 0:00:05]} 4. h3 {[%emt 0:00:06]}
Bxf3 {[%emt 0:00:02]} 5. Qxf3 {[%emt 0:00:08]} e6 {[%emt 0:00:03]} 6. Be2 {
[%emt 0:00:10]} Bc5 {[%emt 0:00:06]} 7. O-O {[%emt 0:00:53]} Nd7 {[%emt 0:00:
00]} 8. exd5 {[%emt 0:30:15]} exd5 {[%emt 0:00:46]} 9. Re1 {[%emt 0:06:22]} Ne7
{[%emt 0:01:13]} 10. Bf1 {[%emt 0:00:07]} O-O {[%emt 0:02:41]} 11. Ne2 {
[%emt 0:04:09]} d4 {[%emt 0:13:03]} 12. Ng3 {[%emt 0:10:32]} Ng6 {[%emt 0:00:
00]} 13. d3 {[%emt 0:08:25]} Qb6 {[%emt 0:11:48]} 14. Qf5 {[%emt 0:00:00]} Nf6
{[%emt 0:08:33]} 15. Ne4 {[%emt 0:04:15]} Nd5 {[%emt 0:08:01]} 16. Bd2 {
[%emt 0:06:34]} Be7 {[%emt 0:03:46]} 17. Rab1 {[%emt 0:00:59]} Rae8 {[%emt 0:
00:00]} 18. g3 {[%emt 0:01:19]} Bb4 {[%emt 0:02:50]} 19. c3 {[%emt 0:05:47]}
Re5 {[%emt 0:05:47]} 20. Qf3 {[%emt 0:00:03]} f5 {[%emt 0:10:25]} 21. Ng5 {
[%emt 0:00:18]} Rxe1 {[%emt 0:03:40]} 22. Rxe1 {[%emt 0:01:29]} dxc3 {[%emt 0:
00:00]} 23. bxc3 {[%emt 0:00:56]} Bxc3 {[%emt 0:00:23]} 24. Bxc3 {[%emt 0:00:
00]} Nxc3 {[%emt 0:00:04]} 25. Qh5 {[%emt 0:07:21]} h6 {[%emt 0:00:04]} 26.
Qxg6 {[%emt 0:00:51]} hxg5 {[%emt 0:00:03]} 27. Re7 {[%emt 0:00:36]} Qd4 {
[%emt 0:00:04]} 28. Rxb7 {[%emt 0:00:46]} f4 {[%emt 0:03:46]} 29. gxf4 {
[%emt 0:02:05]} Nd1 {[%emt 0:00:57]} 30. Qe6+ {[%emt 0:01:02]} Kh8 {[%emt 0:00:
00]} 31. Qe2 {[%emt 0:01:04]} Qxf4 {[%emt 0:00:35]} 32. Qxd1 {[%emt 0:04:47]}
Qxf2+ {[%emt 0:00:04]} 33. Kh1 {[%emt 0:00:05]} Qxf1+ {[%emt 0:00:13]} 34. Qxf1
{[%emt 0:00:06]} Rxf1+ {[%emt 0:00:02]} 35. Kg2 {[%emt 0:00:08]} Rd1 {[%emt 0:
00:00]} 36. Rxa7 {[%emt 0:00:07]} Rxd3 {[%emt 0:00:19]} 37. Rc7 {[%emt 0:00:40]
} Rd2+ {[%emt 0:01:19]} 1/2-1/2

[Event "44th Chess Olympiad Open 2022"]
[Site "Chennai"]
[Date "2022.08.02"]
[Round "5.21"]
[White "Galego, Luis"]
[Black "Dragnev, Valentin"]
[Result "0-1"]
[WhiteElo "2462"]
[BlackElo "2557"]
[Annotator "RC"]
[PlyCount "88"]
[EventDate "2022.??.??"]
[TimeControl "60"]

1. e4 {[%emt 0:00:11]} e5 {[%emt 0:00:09]} 2. Nf3 {[%emt 0:00:28]} Nf6 {
[%emt 0:00:08]} 3. Nxe5 {[%emt 0:04:42]} d6 {[%emt 0:00:08]} 4. Nf3 {[%emt 0:
00:00]} Nxe4 {[%emt 0:00:07]} 5. Nc3 {[%emt 0:07:36]} Nxc3 {[%emt 0:00:28]} 6.
dxc3 {[%emt 0:00:04]} Be7 {[%emt 0:00:06]} 7. Bf4 {[%emt 0:01:34]} O-O {
[%emt 0:00:33]} 8. Qd2 {[%emt 0:01:12]} Nd7 {[%emt 0:00:07]} 9. O-O-O {[%emt 0:
00:00]} Nc5 {[%emt 0:00:07]} 10. h4 {[%emt 0:02:14]} Bg4 {[%emt 0:17:32]} 11.
h5 {[%emt 0:06:20]} Bf6 {[%emt 0:07:49]} 12. h6 {[%emt 0:07:33]} g6 {[%emt 0:
00:00]} 13. Re1 {[%emt 0:04:35]} Re8 {[%emt 0:17:10]} 14. Bc4 {[%emt 0:12:12]}
Bxf3 {[%emt 0:00:37]} 15. gxf3 {[%emt 0:00:49]} Qd7 {[%emt 0:00:21]} 16. Be3 {
[%emt 0:16:32]} Qf5 {[%emt 0:01:12]} 17. f4 {[%emt 0:01:00]} Kf8 {[%emt 0:00:
00]} 18. Qd1 {[%emt 0:07:32]} Re7 {[%emt 0:03:53]} 19. Be2 {[%emt 0:02:48]} Ne4
{[%emt 0:07:56]} 20. Bg4 {[%emt 0:01:21]} Qa5 {[%emt 0:07:56]} 21. Bd4 {
[%emt 0:00:58]} Qxa2 {[%emt 0:01:55]} 22. Rxe4 {[%emt 0:00:18]} Rxe4 {[%emt 0:
00:00]} 23. Bxf6 {[%emt 0:00:10]} Rxf4 {[%emt 0:00:17]} 24. Bg7+ {[%emt 0:00:
00]} Kg8 {[%emt 0:00:02]} 25. f3 {[%emt 0:03:27]} Re8 {[%emt 0:03:51]} 26. b3 {
[%emt 0:00:42]} Qa1+ {[%emt 0:03:26]} 27. Kd2 {[%emt 0:00:02]} Qxd1+ {[%emt 0:
00:00]} 28. Kxd1 {[%emt 0:00:05]} c6 {[%emt 0:12:10]} 29. Rf1 {[%emt 0:03:09]}
f6 {[%emt 0:01:50]} 30. Kd2 {[%emt 0:02:52]} Kf7 {[%emt 0:00:27]} 31. Rf2 {
[%emt 0:01:17]} a5 {[%emt 0:02:15]} 32. Bh3 {[%emt 0:02:43]} Re5 {[%emt 0:00:
00]} 33. Bc8 {[%emt 0:01:53]} Re7 {[%emt 0:03:17]} 34. Bh3 {[%emt 0:00:01]} b5
{[%emt 0:00:24]} 35. Bf1 {[%emt 0:00:25]} a4 {[%emt 0:00:29]} 36. bxa4 {
[%emt 0:00:14]} bxa4 {[%emt 0:00:14]} 37. Bd3 {[%emt 0:01:01]} a3 {[%emt 0:00:
00]} 38. Rf1 {[%emt 0:00:51]} a2 {[%emt 0:01:05]} 39. Ra1 {[%emt 0:00:30]} Ra7
{[%emt 0:00:14]} 40. Ke3 {[%emt 0:01:24]} Rfa4 {[%emt 0:00:26]} 41. Kd2 {
[%emt 0:31:21]} d5 {[%emt 0:07:04]} 42. Kc1 {[%emt 0:00:00]} Ra8 {[%emt 0:00:
00]} 43. c4 {[%emt 0:00:00]} dxc4 {[%emt 0:01:55]} 44. Be4 {[%emt 0:00:00]} c3
{[%emt 0:05:12]} 0-1

[Event "44th Chess Olympiad Open 2022"]
[Site "Chennai"]
[Date "2022.08.02"]
[Round "5.21"]
[White "Veiga, Jose Francisco R P "]
[Black "Horvath, Dominik"]
[Result "1/2-1/2"]
[WhiteElo "2378"]
[BlackElo "2488"]
[Annotator "RC"]
[PlyCount "118"]
[EventDate "2022.??.??"]
[TimeControl "60"]

1. e4 {[%emt 0:00:03]} e5 {[%emt 0:00:07]} 2. Bc4 {[%emt 0:00:40]} Nf6 {
[%emt 0:00:08]} 3. d3 {[%emt 0:00:23]} Nc6 {[%emt 0:00:05]} 4. Nf3 {[%emt 0:00:
00]} Bc5 {[%emt 0:00:22]} 5. c3 {[%emt 0:00:34]} O-O {[%emt 0:00:08]} 6. O-O {
[%emt 0:01:58]} d5 {[%emt 0:00:25]} 7. exd5 {[%emt 0:01:12]} Nxd5 {[%emt 0:00:
00]} 8. Re1 {[%emt 0:08:16]} Bg4 {[%emt 0:00:05]} 9. h3 {[%emt 0:02:30]} Bh5 {
[%emt 0:00:04]} 10. Nbd2 {[%emt 0:00:25]} Nb6 {[%emt 0:01:03]} 11. Bb3 {
[%emt 0:06:56]} Qxd3 {[%emt 0:00:42]} 12. Nxe5 {[%emt 0:01:56]} Qf5 {[%emt 0:
00:00]} 13. Nef3 {[%emt 0:00:44]} Rad8 {[%emt 0:06:37]} 14. Bc2 {[%emt 0:09:46]
} Qc8 {[%emt 0:00:12]} 15. Bxh7+ {[%emt 0:15:31]} Kxh7 {[%emt 0:08:05]} 16.
Ng5+ {[%emt 0:00:28]} Kg6 {[%emt 0:08:58]} 17. Qc2+ {[%emt 0:03:37]} Qf5 {
[%emt 0:04:44]} 18. Qxf5+ {[%emt 0:01:53]} Kxf5 {[%emt 0:00:04]} 19. Nde4 {
[%emt 0:00:43]} Bd6 {[%emt 0:11:01]} 20. f4 {[%emt 0:08:43]} Bxf4 {[%emt 0:00:
00]} 21. Rf1 {[%emt 0:01:10]} Nd5 {[%emt 0:01:04]} 22. c4 {[%emt 0:10:19]} Kg6
{[%emt 0:01:16]} 23. cxd5 {[%emt 0:04:09]} Bxc1 {[%emt 0:05:23]} 24. Raxc1 {
[%emt 0:00:31]} Nd4 {[%emt 0:00:56]} 25. Rxc7 {[%emt 0:02:30]} f5 {[%emt 0:00:
00]} 26. Ne6 {[%emt 0:01:36]} Nxe6 {[%emt 0:01:18]} 27. dxe6 {[%emt 0:00:08]}
fxe4 {[%emt 0:00:03]} 28. Rxf8 {[%emt 0:00:55]} Rxf8 {[%emt 0:00:03]} 29. e7 {
[%emt 0:01:51]} Re8 {[%emt 0:00:27]} 30. g4 {[%emt 0:00:09]} Kf6 {[%emt 0:00:
00]} 31. gxh5 {[%emt 0:04:05]} Rxe7 {[%emt 0:00:05]} 32. Rc5 {[%emt 0:00:47]}
b6 {[%emt 0:00:06]} 33. Rd5 {[%emt 0:00:36]} Re5 {[%emt 0:00:44]} 34. Rd6+ {
[%emt 0:01:46]} Re6 {[%emt 0:01:21]} 35. Rd5 {[%emt 0:01:31]} Re5 {[%emt 0:00:
00]} 36. Rd6+ {[%emt 0:00:11]} Re6 {[%emt 0:00:02]} 37. Rd5 {[%emt 0:00:20]}
Rc6 {[%emt 0:00:44]} 38. Rd7 {[%emt 0:02:15]} a5 {[%emt 0:08:41]} 39. b3 {
[%emt 0:00:50]} Rc2 {[%emt 0:02:12]} 40. a4 {[%emt 0:02:00]} Rc3 {[%emt 0:00:
00]} 41. Rd6+ {[%emt 0:31:49]} Ke5 {[%emt 0:03:19]} 42. Rxb6 {[%emt 0:00:00]}
Kf4 {[%emt 0:01:34]} 43. h6 {[%emt 0:00:00]} gxh6 {[%emt 0:03:52]} 44. Rxh6 {
[%emt 0:00:00]} Rxb3 {[%emt 0:04:37]} 45. Rh5 {[%emt 0:00:00]} Ke3 {[%emt 0:00:
00]} 46. Rd5 {[%emt 0:00:00]} Rd3 {[%emt 0:01:17]} 47. Rxa5 {[%emt 0:00:00]}
Kd2 {[%emt 0:00:43]} 48. Re5 {[%emt 0:00:00]} e3 {[%emt 0:00:05]} 49. h4 {
[%emt 0:00:00]} Rd4 {[%emt 0:14:22]} 50. h5 {[%emt 0:00:00]} e2 {[%emt 0:00:43]
} 51. Kf2 {[%emt 0:00:00]} Rf4+ {[%emt 0:00:11]} 52. Kg3 {[%emt 0:00:00]} Rf5 {
[%emt 0:01:06]} 53. Rxe2+ {[%emt 0:00:00]} Kxe2 {[%emt 0:00:03]} 54. Kg4 {
[%emt 0:00:00]} Ra5 {[%emt 0:01:18]} 55. h6 {[%emt 0:00:00]} Ke3 {[%emt 0:00:
00]} 56. h7 {[%emt 0:00:00]} Rxa4+ {[%emt 0:00:23]} 57. Kf5 {[%emt 0:00:00]}
Ra8 {[%emt 0:00:07]} 58. Kg6 {[%emt 0:00:00]} Kf4 {[%emt 0:00:58]} 59. Kg7 {
[%emt 0:00:00]} Ke5 {[%emt 0:00:27]} 1/2-1/2

[Event "44th Chess Olympiad Open 2022"]
[Site "Chennai"]
[Date "2022.08.02"]
[Round "5.22"]
[White "Laurusas, Tomas"]
[Black "Keinanen, Toivo"]
[Result "1/2-1/2"]
[WhiteElo "2561"]
[BlackElo "2477"]
[Annotator "TA"]
[PlyCount "106"]
[EventDate "2022.??.??"]
[TimeControl "60"]

{[%evp 11,106,0,23,17,19,17,11,16,25,16,28,10,6,10,22,22,23,21,14,18,18,19,18,
17,17,17,24,19,20,13,12,8,18,6,10,7,11,0,0,0,0,-9,-7,-11,0,-12,0,0,0,0,0,0,0,0,
0,0,0,0,0,0,0,0,0,0,25,25,20,0,8,6,10,8,11,9,4,0,0,0,8,12,16,0,0,0,0,0,0,0,0,0,
0,0,0,0,0,0,0]} 1. d4 {[%emt 0:00:01]} d5 {[%emt 0:00:01]} 2. c4 {[%emt 0:00:
00]} e6 {[%emt 0:00:02]} 3. Nc3 {[%emt 0:00:14]} Be7 {[%emt 0:00:05]} 4. Nf3 {
[%emt 0:07:08]} Nf6 {[%emt 0:00:01]} 5. Bg5 {[%emt 0:00:43]} h6 {[%emt 0:00:01]
} 6. Bh4 {[%emt 0:00:47]} dxc4 {[%emt 0:00:02]} 7. e3 {[%emt 0:01:19] D53:
Queen's Gambit Declined: 4 Bg5 Be7: Early deviations.} c5 {[%emt 0:02:35]} 8.
Bxc4 {[%emt 0:02:39]} cxd4 {[%emt 0:00:02]} 9. Nxd4 {[%emt 0:03:15]} Bd7 {
[%emt 0:00:06]} 10. O-O {[%emt 0:07:38]} Nc6 {[%emt 0:00:03]} 11. Nf3 {[%emt 0:
00:00]} O-O {[%emt 0:00:54]} 12. Rc1 {[%emt 0:01:49]} Rc8 {[%emt 0:13:04] [#]}
13. Be2 $146 {[%emt 0:12:25]} ({Predecessor:} 13. a3 Qb6 14. Na4 Qc7 15. b4 a6
16. Bd3 e5 17. Nc5 Rfd8 18. Qb3 Bg4 19. Bxf6 Bxf6 {0-1 (41) Ding,L (2801)-So,W
(2760) Kolkata 2019}) 13... Nh5 {[%emt 0:07:44]} 14. Bxe7 {[%emt 0:02:32]} Qxe7
{[%emt 0:00:02]} 15. Ne4 {[%emt 0:06:29]} Rfd8 {[%emt 0:17:27]} 16. Qd6 {
[%emt 0:01:29][%cal Yc1c6] [#] aiming for Rxc6!} Be8 {[%emt 0:12:15]} 17. Qxe7
{[%emt 0:01:33]} Nxe7 {[%emt 0:00:02]} 18. Rxc8 {[%emt 0:09:42]} Nxc8 {[%emt 0:
00:00]} 19. Rc1 {[%emt 0:02:15]} Bc6 {[%emt 0:13:55]} 20. Nc3 {[%emt 0:06:34]}
Nf6 {[%emt 0:01:49]} 21. Ne5 {[%emt 0:00:00]} Ne7 {[%emt 0:04:20][%cal Yc8e7,
Ye7c6,Yc6e5]} 22. Nxc6 {[%emt 0:02:20]} Nxc6 {[%emt 0:00:02]} 23. Kf1 {[%emt 0:
01:43]} Kf8 {[%emt 0:02:17]} 24. Bf3 {[%emt 0:00:40]} Ne5 {[%emt 0:00:00]} 25.
Be2 {[%emt 0:03:54]} Rc8 {[%emt 0:04:06]} 26. Rd1 {[%emt 0:03:18]} Ke7 {
[%emt 0:01:28]} 27. Rd4 {[%emt 0:00:11]} Ne8 {[%emt 0:01:01]} 28. Re4 {[%emt 0:
01:58]} Rc5 {[%emt 0:01:56]} 29. f4 {[%emt 0:02:30]} Nc6 {[%emt 0:00:00]} 30.
Rc4 {[%emt 0:00:51]} Rxc4 {[%emt 0:01:09]} 31. Bxc4 $11 {[%emt 0:00:00]
Endgame KBN-KNN} Nd6 {[%emt 0:00:05]} 32. Be2 {[%emt 0:00:17]} e5 {[%emt 0:02:
48]} 33. Kf2 {[%emt 0:03:13]} Ke6 {[%emt 0:00:36]} 34. Bf3 {[%emt 0:02:57]} f5
{[%emt 0:01:24]} 35. Bd5+ {[%emt 0:00:50]} Kf6 {[%emt 0:00:00]} 36. Ke2 {
[%emt 0:01:25]} g5 {[%emt 0:00:29]} 37. g3 {[%emt 0:03:47]} Na5 {[%emt 0:03:53]
} 38. Kd3 {[%emt 0:01:45]} Nc6 {[%emt 0:00:10]} 39. a3 {[%emt 0:00:00] The
position is equal.} e4+ {[%emt 0:01:10]} 40. Kc2 {[%emt 0:00:54]} Na5 {[%emt 0:
00:27]} 41. Nd1 {[%emt 0:09:42]} Nc6 {[%emt 0:10:42]} 42. Kc3 {[%emt 0:00:00]}
Ne7 {[%emt 0:02:36]} 43. Kd4 {[%emt 0:00:04]} gxf4 {[%emt 0:00:00]} 44. gxf4 {
[%emt 0:08:38]} b6 {[%emt 0:07:33]} 45. Nc3 {[%emt 0:01:35]} Ne8 $1 {[%emt 0:
00:34]} 46. b4 {[%emt 0:07:34]} Nc7 {[%emt 0:01:45]} 47. a4 {[%emt 0:00:22]
[%cal Ya3a4,Ya4a5]} Ng6 {[%emt 0:02:00]} 48. h3 {[%emt 0:06:09]} Nh4 {[%emt 0:
00:15]} 49. a5 {[%emt 0:00:29]} Nf3+ {[%emt 0:00:00]} 50. Kc4 {[%emt 0:00:05]}
Nd2+ {[%emt 0:01:05]} 51. Kd4 {[%emt 0:00:01]} Nf3+ {[%emt 0:00:02]} 52. Kc4 {
[%emt 0:00:10]} Nd2+ {[%emt 0:01:57]} 53. Kd4 {[%emt 0:00:06]} Nf3+ {[%emt 0:
00:03] An interesting draw. Weighted Error Value: White=0.03 (flawless) /
Black=0.03 (flawless)} 1/2-1/2

[Event "44th Chess Olympiad Open 2022"]
[Site "Chennai"]
[Date "2022.08.02"]
[Round "5.22"]
[White "Pultinevicius, Paulius"]
[Black "Nyysti, Sampsa"]
[Result "1-0"]
[WhiteElo "2539"]
[BlackElo "2363"]
[Annotator "RC"]
[PlyCount "63"]
[EventDate "2022.??.??"]
[TimeControl "60"]

1. d4 {[%emt 0:00:02]} d5 {[%emt 0:00:06]} 2. c4 {[%emt 0:00:48]} dxc4 {
[%emt 0:00:05]} 3. e4 {[%emt 0:01:24]} e5 {[%emt 0:00:27]} 4. Nf3 {[%emt 0:00:
00]} Bb4+ {[%emt 0:00:50]} 5. Nc3 {[%emt 0:04:54]} exd4 {[%emt 0:00:10]} 6.
Nxd4 {[%emt 0:02:31]} Nd7 {[%emt 0:00:21]} 7. Bxc4 {[%emt 0:01:30]} Ngf6 {
[%emt 0:01:27]} 8. f3 {[%emt 0:09:19]} O-O {[%emt 0:06:37]} 9. Be3 {[%emt 0:00:
00]} Ne5 {[%emt 0:07:12]} 10. Be2 {[%emt 0:00:36]} c5 {[%emt 0:01:46]} 11. Nc2
{[%emt 0:02:31]} Bxc3+ {[%emt 0:01:14]} 12. bxc3 {[%emt 0:00:41]} Qe7 {[%emt 0:
00:00]} 13. O-O {[%emt 0:02:27]} Be6 {[%emt 0:05:58]} 14. Qe1 {[%emt 0:05:17]}
Bc4 {[%emt 0:05:37]} 15. Bg5 {[%emt 0:01:22]} h6 {[%emt 0:12:04]} 16. Bh4 {
[%emt 0:20:56]} Bxe2 {[%emt 0:02:57]} 17. Qxe2 {[%emt 0:00:51]} Ng6 {[%emt 0:
00:00]} 18. Bf2 {[%emt 0:01:11]} Rad8 {[%emt 0:02:51]} 19. Qb5 {[%emt 0:16:37]}
b6 {[%emt 0:00:17]} 20. Ne3 {[%emt 0:01:44]} Nf4 {[%emt 0:05:06]} 21. Bg3 {
[%emt 0:08:33]} N4h5 {[%emt 0:02:47]} 22. Nf5 {[%emt 0:04:44]} Qe8 {[%emt 0:00:
00]} 23. Qxe8 {[%emt 0:00:49]} Rfxe8 {[%emt 0:00:06]} 24. Bd6 {[%emt 0:00:28]}
g6 {[%emt 0:04:41]} 25. Ne7+ {[%emt 0:01:00]} Kg7 {[%emt 0:00:40]} 26. e5 {
[%emt 0:00:06]} Ng8 {[%emt 0:02:38]} 27. Nd5 {[%emt 0:00:15]} f6 {[%emt 0:00:
00]} 28. Nc7 {[%emt 0:00:18]} fxe5 {[%emt 0:00:08]} 29. Nxe8+ {[%emt 0:00:04]}
Rxe8 {[%emt 0:00:07]} 30. Rae1 {[%emt 0:01:10]} Kf6 {[%emt 0:00:05]} 31. f4 {
[%emt 0:00:04]} e4 {[%emt 0:00:47]} 32. g4 {[%emt 0:00:23]} 1-0

[Event "44th Chess Olympiad Open 2022"]
[Site "Chennai"]
[Date "2022.08.02"]
[Round "5.22"]
[White "Sklyarov, Dmitry V."]
[Black "Stremavicius, Titas"]
[Result "0-1"]
[WhiteElo "2474"]
[BlackElo "2532"]
[Annotator "RC"]
[PlyCount "146"]
[EventDate "2022.??.??"]
[TimeControl "60"]

1. b3 {[%emt 0:00:02]} Nf6 {[%emt 0:02:48]} 2. Bb2 {[%emt 0:00:04]} e6 {
[%emt 0:01:15]} 3. Nf3 {[%emt 0:01:47]} d5 {[%emt 0:01:29]} 4. e3 {[%emt 0:00:
00]} c5 {[%emt 0:08:45]} 5. c4 {[%emt 0:03:21]} Nc6 {[%emt 0:00:25]} 6. cxd5 {
[%emt 0:02:01]} exd5 {[%emt 0:00:11]} 7. Bb5 {[%emt 0:08:22]} Bd6 {[%emt 0:00:
00]} 8. O-O {[%emt 0:04:17]} O-O {[%emt 0:00:58]} 9. d4 {[%emt 0:02:59]} cxd4 {
[%emt 0:04:12]} 10. Nxd4 {[%emt 0:05:09]} Bd7 {[%emt 0:00:12]} 11. Nf3 {
[%emt 0:06:11]} Bg4 {[%emt 0:05:15]} 12. Be2 {[%emt 0:07:26]} Rc8 {[%emt 0:00:
00]} 13. h3 {[%emt 0:04:44]} Bxf3 {[%emt 0:06:02]} 14. Bxf3 {[%emt 0:00:03]}
Be5 {[%emt 0:00:11]} 15. Bxe5 {[%emt 0:08:32]} Nxe5 {[%emt 0:00:08]} 16. Qd4 {
[%emt 0:08:26]} Nxf3+ {[%emt 0:09:32]} 17. gxf3 {[%emt 0:00:00]} Qa5 {[%emt 0:
00:00]} 18. a4 {[%emt 0:00:00]} a6 {[%emt 0:05:10]} 19. b4 {[%emt 0:00:00]} Qc7
{[%emt 0:00:18]} 20. Nd2 {[%emt 0:01:25]} Qd7 {[%emt 0:01:24]} 21. Kg2 {
[%emt 0:00:00]} Rc2 {[%emt 0:00:46]} 22. Rfc1 {[%emt 0:00:47]} Rfc8 {[%emt 0:
00:00]} 23. Rxc2 {[%emt 0:01:21]} Rxc2 {[%emt 0:00:03]} 24. b5 {[%emt 0:01:33]}
h5 {[%emt 0:03:46]} 25. Qd3 {[%emt 0:02:51]} Qc7 {[%emt 0:00:06]} 26. bxa6 {
[%emt 0:00:03]} bxa6 {[%emt 0:00:06]} 27. Nb3 {[%emt 0:05:20]} Qc4 {[%emt 0:00:
00]} 28. Qxc4 {[%emt 0:01:23]} dxc4 {[%emt 0:00:28]} 29. Nc5 {[%emt 0:03:20]}
Nd5 {[%emt 0:00:09]} 30. Nxa6 {[%emt 0:00:07]} Nxe3+ {[%emt 0:06:06]} 31. Kg3 {
[%emt 0:02:07]} h4+ {[%emt 0:07:12]} 32. Kf4 {[%emt 0:00:28]} Nd5+ {[%emt 0:00:
00]} 33. Ke4 {[%emt 0:02:53]} Rd2 {[%emt 0:00:08]} 34. Nc5 {[%emt 0:00:29]} f5+
{[%emt 0:06:02]} 35. Kxf5 {[%emt 0:00:34]} c3 {[%emt 0:01:14]} 36. Rc1 {
[%emt 0:03:25]} c2 {[%emt 0:03:44]} 37. Ke4 {[%emt 0:02:59]} Nb4 {[%emt 0:00:
00]} 38. Nb3 {[%emt 0:01:14]} Rd3 {[%emt 0:01:49]} 39. Nd4 {[%emt 0:00:39]} Rd1
{[%emt 0:03:00]} 40. Nb3 {[%emt 0:05:37]} Rd3 {[%emt 0:02:48]} 41. Nd4 {
[%emt 0:30:19]} Rd1 {[%emt 0:30:38]} 42. Nb3 {[%emt 0:00:40]} Kf7 {[%emt 0:00:
00]} 43. a5 {[%emt 0:00:00]} Kf6 {[%emt 0:00:00]} 44. a6 {[%emt 0:00:00]} Rxc1
{[%emt 0:00:00]} 45. Nxc1 {[%emt 0:00:00]} Nxa6 {[%emt 0:00:00]} 46. Kd3 {
[%emt 0:00:00]} Nb4+ {[%emt 0:00:00]} 47. Kc3 {[%emt 0:00:00]} Nd5+ {[%emt 0:
00:00]} 48. Kxc2 {[%emt 0:00:00]} Nf4 {[%emt 0:00:00]} 49. Kd2 {[%emt 0:00:00]}
Nxh3 {[%emt 0:00:00]} 50. Ke2 {[%emt 0:00:00]} Ng5 {[%emt 0:00:00]} 51. f4 {
[%emt 0:00:00]} Ne6 {[%emt 0:00:00]} 52. Kf3 {[%emt 0:00:00]} Kf5 {[%emt 0:00:
00]} 53. Nd3 {[%emt 0:00:00]} Nd4+ {[%emt 0:00:00]} 54. Kg2 {[%emt 0:00:00]}
Kg4 {[%emt 0:01:47]} 55. Ne5+ {[%emt 0:00:00]} Kxf4 {[%emt 0:00:06]} 56. Ng6+ {
[%emt 0:00:00]} Kg5 {[%emt 0:00:06]} 57. Ne5 {[%emt 0:00:00]} Kf5 {[%emt 0:00:
00]} 58. Nc4 {[%emt 0:00:00]} g5 {[%emt 0:01:31]} 59. Ne3+ {[%emt 0:00:00]} Ke4
{[%emt 0:00:01]} 60. Ng4 {[%emt 0:02:16]} Ne6 {[%emt 0:00:12]} 61. f3+ {
[%emt 0:01:40]} Kf4 {[%emt 0:01:05]} 62. Nf2 {[%emt 0:00:11]} Ke3 {[%emt 0:00:
00]} 63. Ng4+ {[%emt 0:01:14]} Kf4 {[%emt 0:02:30]} 64. Nf2 {[%emt 0:00:11]}
Kf5 {[%emt 0:00:15]} 65. Ng4 {[%emt 0:01:34]} Nf4+ {[%emt 0:00:04]} 66. Kf2 {
[%emt 0:00:57]} Nd3+ {[%emt 0:00:05]} 67. Ke3 {[%emt 0:01:44]} Ne5 {[%emt 0:00:
00]} 68. Nh2 {[%emt 0:00:55]} Nc4+ {[%emt 0:00:06]} 69. Kf2 {[%emt 0:00:24]}
Kf4 {[%emt 0:00:17]} 70. Kg2 {[%emt 0:04:33]} Ne5 {[%emt 0:01:58]} 71. Kf2 {
[%emt 0:00:06]} h3 {[%emt 0:00:18]} 72. Ke2 {[%emt 0:00:13]} Nxf3 {[%emt 0:00:
00]} 73. Nxf3 {[%emt 0:00:05]} g4 {[%emt 0:00:03]} 0-1